fUSD/lending_fUSD_20251112
["ID","MTS","AMOUNT","RATE_DAILY","PERIOD"]
[393692084,1762929041910,-162.2090938,0.00038256,11]
[393692085,1762929041919,-154.69172916,0.00038256,2]
[393692086,1762929041928,-1257.97920602,0.0003826,2]
[393692087,1762929041938,-510.0,0.00038299,60]
[393692088,1762929041947,-200.0,0.00038301,14]
[393692089,1762929041956,-210.67809692,0.00038318,120]
[393692090,1762929041966,-699.48,0.00038329,2]
[393692091,1762929041975,-699.48,0.00038329,2]
[393692092,1762929041984,-698.34,0.00038329,2]
[393692093,1762929041993,-1400.0,0.00038334,7]
[393692094,1762929042002,-325.97,0.00038345,7]
[393692095,1762929042011,-244.74579222,0.00038346,2]
[393692096,1762929042021,-699.54936881,0.00038346,20]
[393692097,1762929042030,-151.0,0.00038346,31]
[393692098,1762929042039,-151.135937,0.00038346,31]
[393692099,1762929042049,-189.101147,0.00038346,31]
[393692100,1762929042058,-154.201287,0.00038346,31]
[393692101,1762929042067,-159.002243,0.00038346,31]
[393692102,1762929042077,-2898.12859787,0.0003835,120]
[393692103,1762929042086,-1098.05342992,0.00038355,30]
[393692104,1762929042095,-500.0,0.00038355,20]
[393692105,1762929042104,-500.0,0.00038355,20]
[393692106,1762929042114,-500.0,0.00038355,20]
[393692107,1762929042123,-500.0,0.00038355,20]
[393692108,1762929042132,-500.0,0.00038355,20]
[393692109,1762929042141,-500.0,0.00038355,20]
[393692110,1762929042150,-151.0,0.00038355,20]
[393692111,1762929042159,-500.0,0.00038355,20]
[393692112,1762929042168,-151.0,0.00038355,20]
[393692113,1762929042178,-500.0,0.00038355,20]
[393692114,1762929042187,-500.0,0.00038355,20]
[393692115,1762929042196,-151.0,0.00038355,20]
[393692116,1762929042205,-500.0,0.00038355,20]
[393692117,1762929042214,-500.0,0.00038355,20]
[393692118,1762929042223,-500.0,0.00038355,20]
[393692119,1762929042232,-500.0,0.00038355,20]
[393692120,1762929042241,-151.0,0.00038355,20]
[393692121,1762929042250,-196.0098705,0.00038355,20]
[393692122,1762929042259,-500.0,0.00038355,20]
[393692123,1762929042268,-500.0,0.00038355,20]
[393692124,1762929042277,-151.0,0.00038355,20]
[393692125,1762929042287,-500.0,0.00038355,20]
[393692126,1762929042296,-277.35679052,0.00038355,20]
[393692127,1762929042305,-151.0,0.00038355,20]
[393692128,1762929042314,-500.0,0.00038355,20]
[393692129,1762929042323,-287.61899177,0.00038355,20]
[393692130,1762929042333,-151.0,0.00038355,20]
[393692131,1762929042342,-298.26089446,0.00038355,20]
[393692132,1762929042351,-500.0,0.00038355,20]
[393692133,1762929042359,-151.0,0.00038355,20]
[393692134,1762929042369,-309.29654756,0.00038355,20]
[393692135,1762929042379,-500.0,0.00038355,20]
[393692136,1762929042388,-151.0,0.00038355,20]
[393692137,1762929042398,-500.0,0.00038355,20]
[393692138,1762929042407,-320.74051982,0.00038355,20]
[393692139,1762929042416,-151.0,0.00038355,20]
[393692140,1762929042425,-332.60791905,0.00038355,20]
[393692141,1762929042435,-500.0,0.00038355,20]
[393692142,1762929042444,-151.0,0.00038355,20]
[393692143,1762929042454,-344.91441206,0.00038355,20]
[393692144,1762929042463,-500.0,0.00038355,20]
[393692145,1762929042472,-247.6552838,0.00038355,20]
[393692146,1762929042482,-574.12855637,0.00038355,20]
[393692147,1762929042493,-595.37131296,0.00038355,20]
[393692148,1762929042502,-254.77228458,0.00038355,20]
[393692149,1762929042512,-999.0,0.00038355,120]
[393692150,1762929042522,-1769.0,0.00038356,5]
[393692151,1762929042532,-1594.41380969,0.00038356,2]
[393692152,1762929042541,-150.0,0.00038356,30]
[393692153,1762929042551,-150.0,0.00038356,30]
[393692154,1762929042560,-217.59,0.00038356,20]
[393692155,1762929042569,-254.00577411,0.00038356,20]
[393692156,1762929042579,-639.20756675,0.00038356,20]
[393692157,1762929042588,-500.0,0.00038356,20]
[393692158,1762929042598,-500.0,0.00038356,20]
[393692159,1762929042607,-500.0,0.00038356,20]
[393692160,1762929042617,-500.0,0.00038356,20]
[393692161,1762929042626,-500.0,0.00038356,20]
[393692162,1762929042636,-500.0,0.00038356,20]
[393692163,1762929042646,-500.0,0.00038356,20]
[393692164,1762929042658,-500.0,0.00038356,20]
[393692165,1762929042667,-500.0,0.00038356,20]
[393692166,1762929042677,-500.0,0.00038356,20]
[393692167,1762929042686,-500.0,0.00038356,20]
[393692168,1762929042695,-500.0,0.00038356,20]
[393692169,1762929042706,-500.0,0.00038356,20]
[393692170,1762929042716,-25488.4593445,0.00038356,2]
[393692171,1762929042726,-432.40917561,0.00038356,20]
[393692172,1762929042737,-500.0,0.00038356,20]
[393692173,1762929042748,-500.0,0.00038356,20]
[393692174,1762929042758,-500.0,0.00038356,20]
[393692175,1762929042768,-500.0,0.00038356,20]
[393692176,1762929042777,-500.0,0.00038356,20]
[393692177,1762929042787,-500.0,0.00038356,20]
[393692178,1762929042797,-500.0,0.00038356,20]
[393692179,1762929042806,-500.0,0.00038356,20]
[393692181,1762929042815,-500.0,0.00038356,20]
[393692183,1762929042966,-500.0,0.00038356,20]
[393692185,1762929042976,-500.0,0.00038356,20]
[393692186,1762929042986,-523.14596889,0.00038356,20]
[393692187,1762929042996,-543.5,0.00038356,20]
[393692188,1762929043005,-543.5,0.00038356,20]
[393692189,1762929043015,-543.5,0.00038356,20]
[393692190,1762929043024,-543.5,0.00038356,20]
[393692191,1762929043034,-2291.79,0.00038356,20]
[393692192,1762929043044,-2291.79,0.00038356,20]
[393692193,1762929043054,-2291.79,0.00038356,20]
[393692194,1762929043063,-2291.79,0.00038356,20]
[393692195,1762929043072,-1680.8293292,0.00038356,2]
[393692196,1762929043082,-500.0,0.00038356,20]
[393692197,1762929043091,-500.0,0.00038356,20]
[393692198,1762929043101,-545.07931893,0.00038356,20]
[393692199,1762929043110,-500.0,0.00038356,20]
[393692200,1762929043119,-500.0,0.00038356,20]
[393692201,1762929043129,-500.0,0.00038356,20]
[393692202,1762929043138,-500.0,0.00038356,20]
[393692203,1762929043148,-500.0,0.00038356,20]
[393692204,1762929043157,-490.83242161,0.00038356,20]
[393692205,1762929043167,-500.0,0.00038356,20]
[393692206,1762929043176,-500.0,0.00038356,20]
[393692207,1762929043186,-500.0,0.00038356,20]
[393692208,1762929043195,-500.0,0.00038356,20]
[393692209,1762929043205,-544.60268999,0.00038356,20]
[393692210,1762929043215,-500.0,0.00038356,20]
[393692211,1762929043225,-500.0,0.00038356,20]
[393692212,1762929043236,-500.0,0.00038356,20]
[393692213,1762929043246,-500.0,0.00038356,20]
[393692214,1762929043255,-500.0,0.00038356,20]
[393692215,1762929043265,-500.0,0.00038356,20]
[393692216,1762929043275,-500.0,0.00038356,20]
[393692217,1762929043285,-500.0,0.00038356,20]
[393692218,1762929043295,-441.28927123,0.00038356,20]
[393692219,1762929043305,-113.31912231,0.00038356,20]
[393692220,1762929043359,-207.47,0.0003543,60]
[393692221,1762929043368,-102.8151626,0.00038356,20]
[393692222,1762929043388,-126.84633324,0.00038356,20]
[393692223,1762929043398,-500.0,0.00038356,20]
[393692224,1762929043409,-6.82574494,0.00038356,20]
[393692225,1762929043421,-493.17425506,0.00038356,20]
[393692226,1762929043432,-500.0,0.00038356,20]
[393692227,1762929043444,-500.0,0.00038356,20]
[393692228,1762929043454,-500.0,0.00038356,20]
[393692229,1762929043464,-500.0,0.00038356,20]
[393692230,1762929043474,-500.0,0.00038356,20]
[393692231,1762929043483,-500.0,0.00038356,20]
[393692233,1762929043493,-500.0,0.00038356,20]
[393692236,1762929043502,-500.0,0.00038356,20]
[393692238,1762929043512,-500.0,0.00038356,20]
[393692240,1762929043522,-500.0,0.00038356,20]
[393692242,1762929043531,-500.0,0.00038356,20]
[393692243,1762929043540,-500.0,0.00038356,20]
[393692245,1762929043550,-500.0,0.00038356,20]
[393692247,1762929043559,-433.01605433,0.00038356,20]
[393692263,1762929043986,-368.14700699,0.00036993,7]
[393692264,1762929043997,-631.85299301,0.00036993,7]
[393692265,1762929044008,-207.47,0.00037341,60]
[393692266,1762929044018,-66.98394567,0.00038356,20]
[393692267,1762929044028,-500.0,0.00038356,20]
[393692268,1762929044037,-500.0,0.00038356,20]
[393692269,1762929044047,-500.0,0.00038356,20]
[393692270,1762929044056,-500.0,0.00038356,20]
[393692271,1762929044066,-500.0,0.00038356,20]
[393692272,1762929044076,-500.0,0.00038356,20]
[393692273,1762929044085,-500.0,0.00038356,20]
[393692274,1762929044095,-500.0,0.00038356,20]
[393692275,1762929044104,-500.0,0.00038356,20]
[393692276,1762929044114,-500.0,0.00038356,20]
[393692277,1762929044124,-500.0,0.00038356,20]
[393692278,1762929044134,-500.0,0.00038356,20]
[393692279,1762929044143,-500.0,0.00038356,20]
[393692280,1762929044153,-500.0,0.00038356,20]
[393692281,1762929044162,-500.0,0.00038356,20]
[393692282,1762929044171,-500.0,0.00038356,20]
[393692283,1762929044181,-500.0,0.00038356,20]
[393692284,1762929044190,-500.0,0.00038356,20]
[393692285,1762929044199,-500.0,0.00038356,20]
[393692286,1762929044209,-500.0,0.00038356,20]
[393692287,1762929044218,-466.5697753,0.00038356,20]
[393692288,1762929044227,-343.55688602,0.00038356,20]
[393692289,1762929046183,-156.44311398,0.00038356,20]
[393692290,1762929046193,-500.0,0.00038356,20]
[393692291,1762929046202,-500.0,0.00038356,20]
[393692292,1762929046212,-354.48937994,0.00038356,20]
[393692293,1762929046224,-145.51062006,0.00038356,20]
[393692294,1762929046233,-500.0,0.00038356,20]
[393692295,1762929046243,-500.0,0.00038356,20]
[393692296,1762929046256,-500.0,0.00038356,20]
[393692297,1762929046265,-500.0,0.00038356,20]
[393692298,1762929046275,-500.0,0.00038356,20]
[393692299,1762929046284,-400.02301108,0.00038356,20]
[393692331,1762929400135,-335.0,0.00036152,30]
[393692373,1762930232182,-178.4,0.00034174,2]
[393692374,1762930232193,-187.40239261,0.00035104,2]
[393692375,1762930232202,-75.88675647,0.00035115,2]
[393692376,1762930232244,-329.14926267,0.00035115,2]
[393692377,1762930232307,-1847.57997672,0.00035115,2]
[393692378,1762930232317,-500.0,0.00035204,2]
[393692379,1762930232329,-152.0,0.00035908,3]
[393692380,1762930232339,-187.18,0.00036152,60]
[393692381,1762930232349,-133.95028792,0.00036166,5]
[393692382,1762930232361,-577.67971208,0.00036166,5]
[393692383,1762930232371,-405.12694501,0.00036173,5]
[393692384,1762930232382,-483.45305499,0.00036173,5]
[393692385,1762930232391,-500.0,0.00036243,30]
[393692386,1762930232400,-126.59400921,0.00036258,2]
[393692552,1762930238294,-4912.32698246,0.00036258,2]
[393692553,1762930238304,-504.0,0.00036329,2]
[393692554,1762930238314,-999.0,0.00036357,3]
[393692555,1762930238328,-150.0,0.00036372,2]
[393692556,1762930238338,-1402.85,0.00036379,2]
[393692557,1762930238348,-150.0,0.00036415,2]
[393692558,1762930238358,-150.0,0.00036415,120]
[393692560,1762930238368,-1000.0,0.00036509,2]
[393692562,1762930238378,-250.0,0.00036524,2]
[393692564,1762930238387,-200.0,0.00036526,2]
[393692566,1762930238397,-200.0,0.00036534,2]
[393692568,1762930238407,-2558.62424187,0.00036593,2]
[393692570,1762930238417,-755.724801,0.00036653,30]
[393692572,1762930238427,-1207.25,0.0003679,2]
[393692574,1762930238437,-1200.11,0.0003679,2]
[393692576,1762930238447,-1939.50962856,0.00036808,2]
[393692579,1762930238457,-243.99571442,0.00036815,4]
[393692581,1762930238478,-168.0,0.00036819,2]
[393692583,1762930238488,-168.0,0.00036884,7]
[393692585,1762930238498,-168.0,0.00036892,2]
[393692587,1762930238508,-1748.32513312,0.00036966,2]
[393692589,1762930238517,-168.0,0.00037062,7]
[393692591,1762930238527,-500.0,0.00037067,30]
[393692593,1762930238538,-700.772,0.00037068,47]
[393692595,1762930238548,-195.28418553,0.000372,120]
[393692597,1762930238558,-168.0,0.00037321,2]
[393692599,1762930238568,-168.0,0.00037336,7]
[393692602,1762930238578,-500.0,0.00037427,30]
[393692604,1762930238587,-420.0,0.00037472,7]
[393692606,1762930238597,-2414.12,0.00037478,2]
[393692608,1762930238606,-500.0,0.000375,30]
[393692610,1762930238616,-2500.0,0.000375,13]
[393692612,1762930238625,-500.0,0.00037523,30]
[393692614,1762930238635,-1000.0,0.00037557,7]
[393692616,1762930238644,-1205.03,0.00037578,2]
[393692618,1762930238654,-5000.0,0.000376,13]
[393692620,1762930238664,-7500.0,0.000377,13]
[393692622,1762930238673,-168.0,0.00037704,120]
[393692624,1762930238682,-630.55390493,0.00037708,2]
[393692626,1762930238692,-500.0,0.00037719,30]
[393692628,1762930238702,-428.94,0.00037781,2]
[393692630,1762930238712,-150.0,0.00037781,2]
[393692632,1762930238721,-177.14,0.00037781,2]
[393692634,1762930238731,-177.14,0.00037781,2]
[393692636,1762930238741,-177.14,0.00037781,2]
[393692638,1762930238750,-177.14,0.00037781,2]
[393692640,1762930238759,-177.14,0.00037781,2]
[393692642,1762930238769,-175.75,0.00037781,2]
[393692644,1762930238779,-10100.0,0.000378,13]
[393692646,1762930238788,-168.0,0.00037808,2]
[393692648,1762930238797,-1000.0,0.00037808,120]
[393692650,1762930238807,-1000.0,0.00037808,120]
[393692652,1762930238816,-1000.0,0.00037808,120]
[393692654,1762930238825,-580.52998147,0.00037808,120]
[393692656,1762930238835,-187.18,0.00037873,60]
[393692658,1762930238845,-12600.0,0.000379,13]
[393692660,1762930238855,-168.0,0.00037934,2]
[393692662,1762930238864,-500.0,0.00037978,30]
[393692664,1762930238874,-168.0,0.00037978,120]
[393692666,1762930238884,-172.0,0.00038,30]
[393692668,1762930238895,-166.941464,0.00038011,2]
[393692670,1762930238904,-500.0,0.00038022,30]
[393692672,1762930238913,-1000.0,0.00038037,7]
[393692674,1762930238923,-200.0,0.00038049,10]
[393692676,1762930238933,-546.8033,0.00038078,2]
[393692678,1762930238944,-513.2835,0.00038078,2]
[393692680,1762930238953,-2500.0,0.00038078,2]
[393692682,1762930238963,-2517.21091846,0.00038087,2]
[393692684,1762930238972,-500.0,0.00038092,30]
[393692686,1762930238982,-244.35026201,0.000381,33]
[393692688,1762930238991,-1411.2074754,0.000381,33]
[393692691,1762930239001,-1000.0,0.00038102,7]
[393692693,1762930239011,-1000.0,0.00038103,7]
[393692694,1762930239020,-500.0,0.00038106,30]
[393692695,1762930239030,-182.15107752,0.0003811,2]
[393692696,1762930239039,-478.56668374,0.00038119,2]
[393692697,1762930239049,-1928.72412982,0.00038122,2]
[393692698,1762930239059,-181.8886665,0.0003814,120]
[393692699,1762930239069,-1700.0,0.00038154,7]
[393692700,1762930239080,-168.0,0.00038157,2]
[393692701,1762930239090,-500.0,0.00038161,30]
[393692702,1762930239100,-500.0,0.00038173,5]
[393692703,1762930239111,-416.42343256,0.00038173,5]
[393692704,1762930239121,-160496.15078,0.00038178,3]
[393692705,1762930239131,-163.51,0.00038178,2]
[393692706,1762930239142,-325.97,0.00038186,7]
[393692707,1762930239153,-1647.08014488,0.00038187,30]
[393692708,1762930239163,-1647.08014488,0.00038187,30]
[393692709,1762930239174,-678.55,0.00038187,14]
[393692710,1762930239355,-500.0,0.00038187,20]
[393692711,1762930239369,-500.0,0.00038187,20]
[393692712,1762930239380,-420000.0,0.00038188,2]
[393692713,1762930239389,-151.963465,0.00038188,31]
[393692714,1762930239399,-151.0,0.00038188,31]
[393692715,1762930239408,-151.0,0.00038188,31]
[393692716,1762930239418,-151.0,0.00038188,31]
[393692717,1762930239428,-151.0,0.00038188,15]
[393692718,1762930239437,-181.187271,0.00038188,31]
[393692719,1762930239447,-167.435468,0.00038188,31]
[393692720,1762930239458,-151.0,0.00038188,31]
[393692721,1762930239467,-181.187271,0.00038188,31]
[393692722,1762930239477,-153.212537,0.00038188,31]
[393692723,1762930239487,-163.884897,0.00038188,31]
[393692724,1762930239497,-181.187271,0.00038188,31]
[393692725,1762930239507,-181.187271,0.00038188,31]
[393692726,1762930239517,-151.0,0.00038188,31]
[393692727,1762930239526,-151.0,0.00038188,31]
[393692728,1762930239536,-153.39399,0.00038188,31]
[393692729,1762930239546,-151.0,0.00038188,31]
[393692730,1762930239556,-177.615787,0.00038188,31]
[393692731,1762930239565,-190.081741,0.00038188,31]
[393692732,1762930239575,-154.115647,0.00038188,31]
[393692733,1762930239584,-163.930611,0.00038188,31]
[393692734,1762930239594,-151.0,0.00038188,31]
[393692735,1762930239604,-151.0,0.00038188,31]
[393692736,1762930239614,-151.0,0.00038188,31]
[393692737,1762930239625,-151.0,0.00038188,31]
[393692738,1762930239634,-195.48190412,0.00038188,13]
[393692739,1762930239644,-152.348958,0.00038188,31]
[393692740,1762930239654,-152.822137,0.00038188,31]
[393692741,1762930239663,-151.069191,0.00038188,5]
[393692742,1762930239673,-151.0,0.00038188,31]
[393692743,1762930239683,-151.0,0.00038188,31]
[393692744,1762930239693,-162.953906,0.00038188,31]
[393692745,1762930239703,-300.000016,0.00038188,31]
[393692746,1762930239712,-151.0,0.00038188,31]
[393692747,1762930239722,-156.726224,0.00038188,31]
[393692748,1762930239732,-171.302453,0.00038188,31]
[393692749,1762930239741,-151.0,0.00038188,31]
[393692750,1762930239751,-153.652512,0.00038188,31]
[393692751,1762930239760,-157.327414,0.00038188,31]
[393692752,1762930239770,-151.0,0.00038188,31]
[393692753,1762930239780,-151.0,0.00038188,31]
[393692754,1762930239791,-2517.21091838,0.000382,2]
[393692755,1762930239802,-1928.72412975,0.0003823,2]
[393692756,1762930239812,-162.2090938,0.00038246,11]
[393692757,1762930239822,-151.78644313,0.00038247,30]
[393692758,1762930239831,-1098.05342992,0.00038252,30]
[393692759,1762930239841,-163.0,0.00038253,120]
[393692760,1762930239852,-163.0,0.00038253,120]
[393692761,1762930239862,-163.0,0.00038253,120]
[393692762,1762930239872,-163.0,0.00038253,120]
[393692763,1762930239881,-163.0,0.00038253,120]
[393692764,1762930239891,-163.0,0.00038253,120]
[393692765,1762930239900,-163.0,0.00038253,120]
[393692766,1762930239910,-163.0,0.00038253,120]
[393692767,1762930239919,-163.0,0.00038253,120]
[393692768,1762930239929,-163.0,0.00038253,120]
[393692769,1762930239939,-163.0,0.00038253,120]
[393692770,1762930239948,-163.0,0.00038253,120]
[393692771,1762930239958,-163.0,0.00038253,120]
[393692772,1762930239967,-163.0,0.00038253,120]
[393692773,1762930239976,-163.0,0.00038253,120]
[393692774,1762930239986,-163.0,0.00038253,120]
[393692775,1762930239995,-163.0,0.00038253,120]
[393692776,1762930240005,-163.0,0.00038253,120]
[393692777,1762930240014,-163.0,0.00038253,120]
[393692778,1762930240024,-163.0,0.00038253,120]
[393692779,1762930240033,-163.0,0.00038253,120]
[393692781,1762930240043,-163.0,0.00038253,120]
[393692782,1762930240052,-163.0,0.00038253,120]
[393692783,1762930240061,-163.0,0.00038253,120]
[393692784,1762930240071,-163.0,0.00038253,120]
[393692785,1762930240080,-163.0,0.00038253,120]
[393692786,1762930240090,-163.0,0.00038253,120]
[393692787,1762930240100,-163.0,0.00038253,120]
[393692788,1762930240110,-163.0,0.00038253,120]
[393692789,1762930240120,-163.0,0.00038253,120]
[393692790,1762930240131,-163.0,0.00038253,120]
[393692791,1762930240141,-163.0,0.00038253,120]
[393692792,1762930240151,-163.0,0.00038253,120]
[393692793,1762930240160,-163.0,0.00038253,120]
[393692794,1762930240170,-163.0,0.00038253,120]
[393692795,1762930240179,-163.0,0.00038253,120]
[393692796,1762930240189,-163.0,0.00038253,120]
[393692797,1762930240198,-163.0,0.00038253,120]
[393692798,1762930240208,-160.0,0.00038253,120]
[393692799,1762930240217,-160.0,0.00038253,120]
[393692800,1762930240226,-160.0,0.00038253,120]
[393692801,1762930240236,-160.0,0.00038253,120]
[393692802,1762930240250,-160.0,0.00038253,120]
[393692803,1762930240259,-160.0,0.00038253,120]
[393692804,1762930240268,-160.0,0.00038253,120]
[393692805,1762930240278,-160.0,0.00038253,120]
[393692806,1762930240288,-160.0,0.00038253,120]
[393692807,1762930240297,-160.0,0.00038253,120]
[393692808,1762930240307,-160.0,0.00038253,120]
[393692809,1762930240317,-160.0,0.00038253,120]
[393692810,1762930240328,-160.0,0.00038253,120]
[393692811,1762930240337,-160.0,0.00038253,120]
[393692812,1762930240346,-160.0,0.00038253,120]
[393692813,1762930240355,-160.0,0.00038253,120]
[393692814,1762930240365,-160.0,0.00038253,120]
[393692815,1762930240374,-160.0,0.00038253,120]
[393692816,1762930240383,-160.0,0.00038253,120]
[393692817,1762930240393,-160.0,0.00038253,120]
[393692818,1762930240402,-160.0,0.00038253,120]
[393692819,1762930240411,-160.0,0.00038253,120]
[393692820,1762930240420,-160.0,0.00038253,120]
[393692821,1762930240430,-160.0,0.00038253,120]
[393692822,1762930240439,-160.0,0.00038253,120]
[393692823,1762930240448,-160.0,0.00038253,120]
[393692824,1762930240458,-160.0,0.00038253,120]
[393692825,1762930240467,-160.0,0.00038253,120]
[393692826,1762930240476,-160.0,0.00038253,120]
[393692827,1762930240486,-160.0,0.00038253,120]
[393692828,1762930240496,-160.0,0.00038253,120]
[393692829,1762930240505,-160.0,0.00038253,120]
[393692830,1762930240516,-160.0,0.00038253,120]
[393692831,1762930240525,-160.0,0.00038253,120]
[393692832,1762930240535,-160.0,0.00038253,120]
[393692833,1762930240544,-160.0,0.00038253,120]
[393692834,1762930240553,-160.0,0.00038253,120]
[393692835,1762930240562,-160.0,0.00038253,120]
[393692836,1762930240571,-160.0,0.00038253,120]
[393692837,1762930240580,-160.0,0.00038253,120]
[393692838,1762930240589,-160.0,0.00038253,120]
[393692839,1762930240600,-160.0,0.00038253,120]
[393692840,1762930240609,-160.0,0.00038253,120]
[393692841,1762930240618,-160.0,0.00038253,120]
[393692842,1762930240627,-160.0,0.00038253,120]
[393692843,1762930240636,-160.0,0.00038253,120]
[393692844,1762930240646,-160.0,0.00038253,120]
[393692845,1762930240655,-160.0,0.00038253,120]
[393692846,1762930240664,-160.0,0.00038253,120]
[393692847,1762930240673,-160.0,0.00038253,120]
[393692848,1762930240682,-160.0,0.00038253,120]
[393692849,1762930240691,-160.0,0.00038253,120]
[393692850,1762930240701,-160.0,0.00038253,120]
[393692851,1762930240710,-160.0,0.00038253,120]
[393692852,1762930240719,-160.0,0.00038253,120]
[393692853,1762930240728,-160.0,0.00038253,120]
[393692854,1762930240737,-160.0,0.00038253,120]
[393692855,1762930240747,-160.0,0.00038253,120]
[393692856,1762930240756,-160.0,0.00038253,120]
[393692857,1762930240765,-160.0,0.00038253,120]
[393692858,1762930240774,-160.0,0.00038253,120]
[393692859,1762930240784,-160.0,0.00038253,120]
[393692860,1762930240793,-160.0,0.00038253,120]
[393692861,1762930240802,-160.0,0.00038253,120]
[393692862,1762930240811,-160.0,0.00038253,120]
[393692863,1762930240820,-160.0,0.00038253,120]
[393692864,1762930240829,-160.0,0.00038253,120]
[393692865,1762930240838,-160.0,0.00038253,120]
[393692866,1762930240847,-160.0,0.00038253,120]
[393692867,1762930240856,-160.0,0.00038253,120]
[393692868,1762930240865,-160.0,0.00038253,120]
[393692869,1762930240874,-160.0,0.00038253,120]
[393692870,1762930240884,-810.0,0.00038253,120]
[393692871,1762930240896,-810.0,0.00038253,120]
[393692872,1762930240905,-270.0,0.00038253,120]
[393692873,1762930240914,-270.0,0.00038253,120]
[393692874,1762930240924,-153.0,0.00038253,120]
[393692875,1762930240933,-1000.0,0.00038253,10]
[393692876,1762930240944,-1000.0,0.00038253,10]
[393692877,1762930240954,-1000.0,0.00038253,10]
[393692878,1762930240963,-5464.8012671,0.00038255,2]
[393692879,1762930240972,-1000.0,0.00038256,120]
[393692880,1762930240981,-1000.0,0.00038256,2]
[393692881,1762930240991,-19280.9721,0.00038256,2]
[393692882,1762930240999,-154.69172916,0.00038256,2]
[393692883,1762930241008,-181.31025833,0.00038256,2]
[393692884,1762930241017,-304.13318089,0.00038256,7]
[393692885,1762930241026,-533.40147207,0.00038273,5]
[393692886,1762930241035,-500.0,0.00038273,5]
[393692887,1762930241044,-563.90910635,0.00038273,5]
[393692888,1762930241053,-510.13117198,0.00038281,30]
[393692889,1762930241062,-12728.194498,0.00038288,2]
[393692890,1762930241072,-21344.1126141,0.00038288,2]
[393692891,1762930241081,-150.0,0.00038299,60]
[393692892,1762930241090,-150.0,0.00038299,60]
[393692893,1762930241099,-150.0,0.00038299,10]
[393692894,1762930241108,-150.0,0.00038299,60]
[393692895,1762930241117,-263.81012894,0.00038299,60]
[393692896,1762930241126,-150.0,0.00038299,2]
[393692897,1762930241135,-500.0,0.00038299,60]
[393692898,1762930241145,-150.0,0.00038299,60]
[393692899,1762930241269,-150.0,0.00038299,2]
[393692900,1762930241279,-150.0,0.00038299,60]
[393692901,1762930241289,-150.0,0.00038299,60]
[393692902,1762930241299,-1010.0,0.000383,7]
[393692903,1762930241308,-2517.21091838,0.00038312,2]
[393692904,1762930241319,-210.67809692,0.00038318,120]
[393692905,1762930241328,-1928.72412975,0.00038339,2]
[393692906,1762930241337,-151.0,0.00038345,31]
[393692907,1762930241347,-170.808803,0.00038345,31]
[393692908,1762930241356,-185.167043,0.00038345,31]
[393692909,1762930241365,-151.135937,0.00038345,31]
[393692910,1762930241375,-189.101147,0.00038345,31]
[393692911,1762930241384,-156.397523,0.00038345,31]
[393692912,1762930241394,-151.0,0.00038345,31]
[393692913,1762930241403,-151.0,0.00038345,31]
[393692914,1762930241413,-159.587371,0.00038345,30]
[393692915,1762930241422,-151.0,0.00038345,31]
[393692916,1762930241431,-151.0,0.00038345,31]